bitfinex-derivatives/quotes_BTCF0:USTF0_20241021
["timestamp","ask_amount","ask_price","bid_price","bid_amount"]
[1729487297141,0.36156,69139.0,69126.0,0.09028703]
[1729487297342,0.002,69154.0,69144.0,0.07233]
[1729487297542,0.001,69154.0,69145.0,0.033]
[1729487297748,0.001,69154.0,69145.0,0.09029641]
[1729487297950,0.001,69154.0,69147.0,0.05729641]
[1729487298349,0.001,69154.0,69151.0,0.072322]
[1729487298552,0.009,69154.0,69151.0,0.072322]
[1729487298847,0.008,69154.0,69151.0,0.072322]
[1729487299442,0.017,69154.0,69151.0,0.072322]
[1729487299639,0.017,69154.0,69146.0,0.05729641]
[1729487299954,0.017,69154.0,69145.0,0.033]
[1729487299955,0.3608,69152.0,69145.0,0.033]
[1729487301452,0.3698,69152.0,69145.0,0.033]
[1729487301861,0.3698,69152.0,69145.0,0.105329]
[1729487302241,0.3698,69152.0,69146.0,0.072328]
[1729487302447,0.3788,69152.0,69146.0,0.072328]
[1729487304446,0.3788,69152.0,69147.0,0.072327]
[1729487304754,0.3698,69152.0,69147.0,0.072327]
[1729487304963,0.3788,69152.0,69147.0,0.072327]
[1729487305454,0.3788,69152.0,69145.0,0.033]
[1729487305455,0.3788,69152.0,69148.0,0.072326]
[1729487305852,0.3608,69151.0,69148.0,0.072326]
[1729487306558,0.07984406,69150.0,69149.0,0.072325]
[1729487308551,0.08684406,69150.0,69149.0,0.072325]
[1729487309057,0.09484406,69150.0,69149.0,0.072325]
[1729487310046,0.08684406,69150.0,69149.0,0.072325]
[1729487310252,0.09484406,69150.0,69149.0,0.072325]
[1729487312262,0.08684406,69150.0,69149.0,0.072325]
[1729487312461,0.09484406,69150.0,69149.0,0.072325]
[1729487313555,0.0504322,69150.0,69149.0,0.072325]
[1729487313751,0.015,69150.0,69149.0,0.072325]
[1729487314748,0.05042996,69150.0,69149.0,0.072325]
[1729487314956,0.015,69150.0,69149.0,0.072325]
[1729487315152,0.05042975,69150.0,69149.0,0.072325]
[1729487315657,0.015,69150.0,69149.0,0.072325]
[1729487316054,0.0304,69160.0,69149.0,0.45190089]
[1729487316257,0.00216961,69166.0,69165.0,0.072308]
[1729487316457,0.0315,69177.0,69175.0,0.072298]
[1729487318559,0.0315,69177.0,69175.0,0.073298]
[1729487318560,0.0405,69177.0,69175.0,0.073298]
[1729487319258,0.0485,69177.0,69175.0,0.074298]
[1729487321259,0.04439092,69176.0,69175.0,0.074298]
[1729487321665,0.04439099,69176.0,69175.0,0.074298]
[1729487322267,0.04439099,69176.0,69175.0,0.073298]
[1729487322465,0.05239099,69176.0,69175.0,0.074298]
[1729487322857,0.06139099,69176.0,69175.0,0.0931592]
[1729487323960,0.06139099,69176.0,69175.0,0.074298]
[1729487324157,0.09680675,69176.0,69175.0,0.074298]
[1729487326571,0.09680645,69176.0,69175.0,0.074298]
[1729487328164,0.17520685,69176.0,69175.0,0.074298]
[1729487328475,0.017,69176.0,69175.0,0.074298]
[1729487343778,0.05241413,69176.0,69175.0,0.074298]
[1729487344275,0.05241413,69176.0,69175.0,0.002]
[1729487344472,0.12780547,69176.0,69168.0,0.072305]
[1729487344774,0.15824413,69172.0,69167.0,0.072306]
[1729487344976,0.07980547,69171.0,69167.0,0.072306]
[1729487345276,0.2380496,69170.0,69167.0,0.072306]
[1729487345481,0.07980547,69169.0,69167.0,0.072306]
[1729487345678,0.15824413,69170.0,69168.0,0.001]
[1729487346066,0.07981575,69169.0,69168.0,0.001]
[1729487347582,0.07981575,69169.0,69167.0,0.073306]
[1729487347785,0.07981575,69168.0,69167.0,0.073306]
[1729487348479,0.07981575,69168.0,69167.0,0.072306]
[1729487349374,0.08781575,69168.0,69167.0,0.073306]
[1729487349980,0.09681575,69168.0,69167.0,0.074306]
[1729487350676,0.017,69168.0,69167.0,0.074306]
[1729487358685,0.09681584,69168.0,69167.0,0.074306]
[1729487359385,0.05241968,69168.0,69167.0,0.074306]
[1729487364780,0.09681589,69168.0,69167.0,0.074306]
[1729487365694,0.017,69168.0,69167.0,0.074306]
[1729487373797,0.0524199,69168.0,69167.0,0.074306]
[1729487375486,0.017,69168.0,69167.0,0.074306]
[1729487376191,0.09681632,69168.0,69167.0,0.074306]
[1729487376394,0.09681625,69168.0,69167.0,0.074306]
[1729487378286,0.017,69168.0,69167.0,0.074306]
[1729487378686,0.09681718,69168.0,69167.0,0.074306]
[1729487378891,0.09681718,69168.0,69167.0,0.002]
[1729487379090,0.09681718,69168.0,69161.0,0.3608]
[1729487379091,0.072309,69165.0,69157.0,0.072316]
[1729487379290,0.4248,69164.0,69157.0,0.072316]
[1729487379498,0.4248,69164.0,69158.0,0.072315]
[1729487379701,0.072312,69162.0,69158.0,0.072315]
[1729487380092,0.072312,69162.0,69152.0,0.37906688]
[1729487380093,0.072316,69158.0,69152.0,0.37906688]
[1729487380290,0.433117,69157.0,69152.0,0.37906688]
[1729487380495,0.433117,69157.0,69152.0,0.01826688]
[1729487380496,0.3608,69157.0,69152.0,0.01826688]
[1729487380691,0.3608,69157.0,69150.0,0.072324]
[1729487381196,0.3608,69157.0,69152.0,0.001]
[1729487381506,0.072319,69156.0,69152.0,0.001]
[1729487381707,0.3608,69157.0,69152.0,0.073321]
[1729487381998,0.3698,69157.0,69151.0,0.0217671]
[1729487382200,0.07232,69155.0,69151.0,0.0217671]
[1729487383698,0.072321,69153.0,69152.0,0.001]
[1729487384089,0.072321,69153.0,69151.0,0.00316883]
[1729487384292,0.0642,69152.0,69151.0,0.002]
[1729487384802,0.0642,69152.0,69151.0,0.001]
[1729487385501,0.072326,69148.0,69141.0,0.072333]
[1729487386094,0.3608,69150.0,69141.0,0.072333]
[1729487386095,0.072328,69147.0,69141.0,0.072333]
[1729487386395,0.3608,69144.0,69136.0,0.072339]
[1729487386596,0.3608,69144.0,69131.0,0.05705671]
[1729487386805,0.072341,69134.0,69131.0,0.05705671]
[1729487387097,0.0305,69133.0,69131.0,0.05705671]
[1729487388006,0.0305,69133.0,69132.0,0.00416957]
[1729487388390,0.0305,69133.0,69132.0,0.00216957]
[1729487388590,0.0617,69133.0,69132.0,0.01116957]
[1729487388901,0.072343,69132.0,69126.0,0.07165347]
[1729487389102,0.3608,69130.0,69126.0,0.07165347]
[1729487390099,0.3608,69130.0,69124.0,0.072351]
[1729487390303,0.434145,69130.0,69126.0,0.006]
[1729487390694,0.434145,69130.0,69126.0,0.007]
[1729487390695,0.435145,69130.0,69126.0,0.007]
[1729487391298,0.3628,69130.0,69126.0,0.006]
[1729487391502,0.072347,69129.0,69126.0,0.006]
[1729487391895,0.072347,69129.0,69124.0,0.006]
[1729487392097,0.072347,69129.0,69126.0,0.001]
[1729487392903,0.073347,69129.0,69126.0,0.006]
[1729487393494,0.074347,69129.0,69126.0,0.006]
[1729487397210,0.002,69129.0,69126.0,0.006]
[1729487397398,0.072348,69128.0,69126.0,0.006]
[1729487398709,0.003,69128.0,69105.0,0.48064]
[1729487399006,0.072356,69120.0,69114.0,0.072362]
[1729487399409,0.072356,69120.0,69115.0,0.072361]
[1729487399701,0.03,69119.0,69115.0,0.072361]
[1729487401302,0.031,69119.0,69115.0,0.072361]
[1729487401804,0.032,69119.0,69115.0,0.074361]
[1729487402906,0.002,69119.0,69115.0,0.074361]
[1729487405909,0.074357,69119.0,69115.0,0.002]
[1729487408097,0.072359,69117.0,69115.0,0.002]
[1729487409909,0.072366,69110.0,69109.0,0.02087618]
[1729487410097,0.072366,69110.0,69109.0,0.00216999]
[1729487411108,0.073366,69110.0,69109.0,0.00416999]
[1729487411412,0.074366,69110.0,69109.0,0.00416999]
[1729487414511,0.03814615,69110.0,69109.0,0.00416999]
[1729487415420,0.002,69110.0,69109.0,0.00416999]
[1729487416713,0.066,69120.0,69109.0,0.1144862]
[1729487416714,0.0327,69120.0,69109.0,0.1144862]
[1729487416921,0.105056,69120.0,69118.0,0.0429956]
[1729487417620,0.105056,69120.0,69109.0,0.00416999]
[1729487417621,0.0327,69120.0,69109.0,0.00416999]
[1729487417917,0.072362,69115.0,69109.0,0.00216999]
[1729487418331,0.072362,69114.0,69109.0,0.00216999]
[1729487418512,0.0327,69120.0,69109.0,0.00216999]
[1729487418712,0.072365,69111.0,69109.0,0.00216999]
[1729487418918,0.0319,69110.0,69109.0,0.00216999]
[1729487419218,0.0319,69110.0,69103.0,0.07165934]
[1729487419415,0.0319,69110.0,69101.0,0.07165934]
[1729487419416,0.3608,69108.0,69101.0,0.07165934]
[1729487419607,0.3608,69108.0,69099.0,0.103677]
[1729487419809,0.391,69108.0,69099.0,0.12249396]
[1729487420009,0.391,69108.0,69100.0,0.072376]
[1729487420407,0.391,69108.0,69103.0,0.004]
[1729487421008,0.464369,69108.0,69103.0,0.002]
[1729487421215,0.465369,69108.0,69100.0,0.074376]
[1729487421721,0.465369,69108.0,69100.0,0.002]
[1729487421722,0.3608,69101.0,69100.0,0.002]
[1729487421928,0.433175,69101.0,69100.0,0.002]
[1729487422511,0.393,69108.0,69100.0,0.002]
[1729487422512,0.072371,69106.0,69100.0,0.002]
[1729487422713,0.072371,69106.0,69103.0,0.001]
[1729487423017,0.072371,69106.0,69103.0,0.002]
[1729487423213,0.001,69101.0,69090.0,0.0430212]
[1729487423419,0.072387,69091.0,69088.0,0.00217101]
[1729487423624,0.3608,69093.0,69088.0,0.00217101]
[1729487423826,0.072387,69090.0,69088.0,0.00217101]
[1729487424322,0.033,69092.0,69075.0,0.072402]
[1729487424323,0.072392,69085.0,69075.0,0.072402]
[1729487424522,0.072392,69085.0,69070.0,0.0430212]
[1729487424523,0.072395,69083.0,69070.0,0.0430212]
[1729487424730,0.072395,69083.0,69069.0,0.0653]
[1729487424731,0.072395,69083.0,69069.0,0.1083212]
[1729487424925,0.3608,69085.0,69069.0,0.1083212]
[1729487425232,0.072397,69080.0,69071.0,0.01833206]
[1729487425724,0.3608,69085.0,69071.0,0.01833206]
[1729487426040,0.072399,69079.0,69071.0,0.01833206]
[1729487426420,0.0328,69078.0,69071.0,0.01833206]
[1729487426617,0.0328,69078.0,69069.0,0.0653]
[1729487426929,0.072405,69074.0,69069.0,0.0653]
[1729487428632,0.072405,69074.0,69066.0,0.072412]
[1729487429013,0.074405,69074.0,69066.0,0.072412]
[1729487429425,0.002,69074.0,69065.0,0.3608]
[1729487429625,0.002,69074.0,69061.0,0.0321]
[1729487429626,0.072411,69068.0,69061.0,0.0321]
[1729487430427,0.072411,69067.0,69061.0,0.0321]
[1729487430621,0.072411,69067.0,69058.0,0.07242]
[1729487431825,0.072411,69067.0,69059.0,0.072419]
[1729487433130,0.074411,69067.0,69059.0,0.072419]
[1729487434629,0.074411,69067.0,69061.0,0.0430212]
[1729487435329,0.074411,69067.0,69059.0,0.1154402]
[1729487435539,0.074411,69067.0,69060.0,0.0430212]
[1729487435833,0.074411,69067.0,69059.0,0.1154402]
[1729487436332,0.002,69067.0,69059.0,0.1154402]
[1729487436528,0.0319,69066.0,69058.0,0.0430212]
[1729487436728,0.0325,69065.0,69057.0,0.0430212]
[1729487436931,0.072417,69062.0,69057.0,0.0430212]
[1729487437132,0.0325,69065.0,69057.0,0.0430212]
[1729487437437,0.0325,69065.0,69056.0,0.0430212]
[1729487438333,0.072417,69062.0,69056.0,0.0430212]
[1729487438634,0.072417,69062.0,69057.0,0.0430212]
[1729487438837,0.072417,69062.0,69056.0,0.0430212]
[1729487439436,0.072417,69062.0,69057.0,0.0430212]
[1729487439645,0.073417,69062.0,69057.0,0.0430212]
[1729487440125,0.074417,69062.0,69057.0,0.0430212]
[1729487440536,0.074417,69062.0,69058.0,0.0430212]
[1729487440923,0.074417,69062.0,69059.0,0.0430212]
[1729487441342,0.072418,69061.0,69059.0,0.0430212]
[1729487441650,0.002,69062.0,69054.0,0.0021719]
[1729487441651,0.072419,69059.0,69054.0,0.0021719]
[1729487442043,0.002,69062.0,69054.0,0.0021719]
[1729487442044,0.072421,69058.0,69054.0,0.0021719]
[1729487443343,0.001,69058.0,69054.0,0.0745959]
[1729487443644,0.002,69058.0,69054.0,0.0021719]
[1729487444032,0.072423,69056.0,69054.0,0.0021719]
[1729487445233,0.074423,69056.0,69054.0,0.0021719]
[1729487447137,0.032,69055.0,69054.0,0.0021719]
[1729487448236,0.033,69055.0,69054.0,0.0021719]
[1729487448739,0.034,69055.0,69054.0,0.0021719]
[1729487450232,0.072427,69052.0,69047.0,0.0430212]
[1729487450433,0.0316,69051.0,69046.0,0.0430212]
[1729487450637,0.0332,69050.0,69046.0,0.0430212]
[1729487450849,0.0332,69050.0,69047.0,0.0430212]
[1729487451345,0.0332,69050.0,69046.0,0.0430212]
[1729487451547,0.0332,69050.0,69049.0,0.0430212]
[1729487451745,0.0332,69050.0,69048.0,0.1154522]
[1729487452245,0.0332,69050.0,69049.0,0.0430212]
[1729487452246,0.0342,69050.0,69049.0,0.0430212]
[1729487452443,0.0342,69050.0,69048.0,0.072431]
[1729487452945,0.0352,69050.0,69047.0,0.0572713]
[1729487453543,0.0352,69050.0,69048.0,0.0572713]
[1729487453847,0.001,69050.0,69049.0,0.3608]
[1729487454038,0.0315,69066.0,69049.0,0.82818]
[1729487454239,0.0315,69066.0,69063.0,0.04304708]
[1729487454445,0.0315,69066.0,69064.0,0.072414]
[1729487454645,0.0315,69066.0,69064.0,0.01546108]
[1729487455042,0.0315,69066.0,69064.0,0.072414]
[1729487456248,0.0315,69066.0,69062.0,0.05739611]
[1729487457042,0.0315,69066.0,69061.0,0.072417]
[1729487457043,0.0315,69066.0,69063.0,0.05739611]
[1729487458249,0.0315,69066.0,69063.0,0.05939611]
[1729487459152,0.0315,69066.0,69063.0,0.06039611]
[1729487459450,0.0315,69066.0,69064.0,0.05739611]
[1729487459646,0.0315,69066.0,69063.0,0.06039611]
[1729487459849,0.0315,69066.0,69063.0,0.003]
[1729487460050,0.03,69065.0,69063.0,0.003]
[1729487460358,0.0315,69066.0,69063.0,0.003]
[1729487460759,0.03,69065.0,69063.0,0.003]
[1729487461157,0.03,69065.0,69063.0,0.002]
[1729487461861,0.03,69065.0,69063.0,0.001]
[1729487462047,0.031,69065.0,69063.0,0.002]
[1729487462557,0.433214,69064.0,69063.0,0.002]
[1729487463053,0.433214,69064.0,69057.0,0.05739611]
[1729487463054,0.7952,69064.0,69053.0,0.05739611]
[1729487463262,0.7952,69064.0,69050.0,0.072429]
[1729487463263,0.3608,69055.0,69051.0,0.05739611]
[1729487463457,0.3608,69055.0,69050.0,0.12982511]
[1729487463458,0.0305,69054.0,69050.0,0.12982511]
[1729487463963,0.03,69053.0,69051.0,0.05739611]
[1729487464352,0.03,69053.0,69050.0,0.12982511]
[1729487464763,0.3608,69051.0,69047.0,0.00217231]
[1729487464945,0.3608,69051.0,69050.0,0.001]
[1729487466266,0.3618,69051.0,69050.0,0.001]
[1729487466459,0.79628,69051.0,69038.0,0.072441]
[1729487466647,0.79628,69051.0,69015.0,0.072465]
[1729487466648,0.3618,69051.0,69029.0,0.3608]
[1729487466847,0.3608,69033.0,69025.0,0.072454]
[1729487467058,0.3608,69033.0,69021.0,0.00217263]
[1729487467059,0.07245,69030.0,69021.0,0.00217263]
[1729487467359,0.07245,69030.0,69023.0,0.072457]
[1729487467360,0.03,69029.0,69023.0,0.072457]
[1729487467755,0.03,69029.0,69021.0,0.00217263]
[1729487467756,0.072454,69026.0,69021.0,0.00217263]
[1729487468958,0.001,69026.0,69025.0,0.072455]
[1729487469658,0.003,69026.0,69025.0,0.072455]
[1729487470748,0.004,69026.0,69025.0,0.072455]
[1729487471552,0.006,69026.0,69025.0,0.072455]
[1729487471759,0.33053648,69027.0,69023.0,0.05739611]
[1729487472153,0.33053648,69027.0,69017.0,0.07174514]
[1729487472154,0.33053648,69027.0,69019.0,0.05739611]
[1729487472360,0.33053648,69027.0,69013.0,0.05739611]
[1729487472364,0.072466,69015.0,69013.0,0.05739611]
[1729487472662,0.07247,69012.0,69008.0,0.05739611]
[1729487473354,0.36168,69014.0,69007.0,0.12987011]
[1729487473654,0.3608,69014.0,69011.0,0.072469]
[1729487474053,0.3608,69014.0,69008.0,0.05739611]
[1729487474264,0.3608,69014.0,69012.0,0.072468]
[1729487474865,0.3618,69014.0,69012.0,0.072468]
[1729487475359,0.3628,69014.0,69012.0,0.072468]
[1729487475560,0.3618,69014.0,69012.0,0.072468]
[1729487475760,0.3628,69014.0,69012.0,0.077468]
[1729487475963,0.3628,69014.0,69012.0,0.082468]
[1729487477356,0.3628,69014.0,69012.0,0.01]
[1729487477667,0.435267,69014.0,69012.0,0.01]
[1729487479971,0.074467,69014.0,69012.0,0.01]
[1729487490481,0.002,69014.0,69012.0,0.01]
[1729487490666,0.3608,69023.0,69012.0,0.3708]
[1729487490870,0.3608,69023.0,69021.0,0.072459]
[1729487491374,0.00217412,69026.0,69013.0,0.08909611]
[1729487491375,0.00217412,69026.0,69018.0,0.3608]
[1729487491573,0.00217412,69026.0,69024.0,0.433255]
[1729487493180,0.00217412,69026.0,69024.0,0.49065111]
[1729487493390,0.00817412,69026.0,69024.0,0.433255]
[1729487493677,0.01517412,69026.0,69024.0,0.433255]
[1729487494180,0.00617412,69026.0,69024.0,0.433255]
[1729487494479,0.01017412,69026.0,69024.0,0.433255]
[1729487495083,0.01017412,69026.0,69024.0,0.45163628]
[1729487496180,0.01017412,69026.0,69024.0,0.09083628]
[1729487496683,0.00617412,69026.0,69024.0,0.09083628]
[1729487496872,0.01117412,69026.0,69024.0,0.09083628]
[1729487504986,0.01117412,69026.0,69025.0,0.072455]
[1729487505697,0.072438,69042.0,69035.0,0.072444]
[1729487505989,0.00217396,69047.0,69040.0,0.072439]
[1729487505990,0.36156,69044.0,69040.0,0.072439]
[1729487506196,0.36232,69044.0,69040.0,0.072439]
[1729487506392,0.3608,69044.0,69040.0,0.072439]
[1729487507292,0.3698,69044.0,69040.0,0.072439]
[1729487507695,0.009,69042.0,69040.0,0.072439]
[1729487507989,0.009,69042.0,69037.0,0.0302]
[1729487508892,0.018,69042.0,69040.0,0.001]
[1729487509481,0.018,69042.0,69037.0,0.0302]
[1729487509687,0.008,69042.0,69040.0,0.001]
[1729487510292,0.008,69042.0,69037.0,0.0312]
[1729487510595,0.017,69042.0,69040.0,0.001]
[1729487511398,0.008,69042.0,69037.0,0.0312]
[1729487511592,0.018,69042.0,69040.0,0.001]
[1729487512694,0.018,69042.0,69037.0,0.0322]
[1729487512888,0.009,69042.0,69037.0,0.0312]
[1729487513194,0.018,69042.0,69040.0,0.001]
[1729487513391,0.009,69042.0,69040.0,0.002]
[1729487513694,0.018,69042.0,69040.0,0.002]
[1729487514082,0.018,69042.0,69040.0,0.001]
[1729487515885,0.009,69042.0,69040.0,0.002]
[1729487516097,0.018,69042.0,69040.0,0.002]
[1729487516310,0.090437,69042.0,69040.0,0.002]
[1729487516895,0.04447923,69041.0,69040.0,0.002]
[1729487517193,0.15920319,69041.0,69040.0,0.002]
[1729487517493,0.04447923,69041.0,69040.0,0.002]
[1729487517889,0.04447923,69041.0,69040.0,0.001]
[1729487518089,0.05347923,69041.0,69040.0,0.002]
[1729487519093,0.05347923,69041.0,69040.0,0.001]
[1729487519292,0.05347923,69041.0,69040.0,0.002]
[1729487519293,0.06247923,69041.0,69040.0,0.002]
[1729487522095,0.13491723,69041.0,69040.0,0.002]
[1729487523187,0.13491723,69041.0,69025.0,0.072455]
[1729487523188,0.29407139,69041.0,69021.0,0.0646]
[1729487523392,0.3608,69033.0,69021.0,0.0646]
[1729487523594,0.072453,69028.0,69021.0,0.0329]
[1729487523794,0.04447923,69027.0,69024.0,0.072456]
[1729487523993,0.07245,69030.0,69024.0,0.072456]
[1729487524396,0.07245,69030.0,69021.0,0.0349]
[1729487524700,0.07245,69030.0,69025.0,0.072455]
[1729487525094,0.08045,69030.0,69025.0,0.072455]
[1729487525895,0.005,69027.0,69025.0,0.072455]
[1729487526394,0.0318,69029.0,69025.0,0.073455]
[1729487527099,0.005,69027.0,69025.0,0.073455]
[1729487528504,0.005,69027.0,69025.0,0.001]
[1729487529293,0.072456,69024.0,69016.0,0.072464]
[1729487529907,0.072456,69024.0,69017.0,0.433263]
[1729487530397,0.072456,69024.0,69019.0,0.072461]
[1729487530398,0.074456,69024.0,69019.0,0.072461]
[1729487530598,0.076456,69024.0,69019.0,0.072461]
[1729487532997,0.077456,69024.0,69019.0,0.072461]
[1729487533199,0.006,69024.0,69022.0,0.072458]
[1729487534206,0.3608,69033.0,69032.0,0.072448]
[1729487534590,0.0312,69046.0,69027.0,0.3608]
[1729487534795,0.072437,69042.0,69034.0,0.072446]
[1729487534996,0.43324,69040.0,69034.0,0.072446]
[1729487535802,0.43324,69040.0,69029.0,0.072451]
[1729487535803,0.072441,69039.0,69029.0,0.072451]
[1729487536004,0.133741,69039.0,69029.0,0.072451]
[1729487536200,0.008,69033.0,69032.0,0.001]
[1729487536993,0.0693,69039.0,69030.0,0.07245]
[1729487537297,0.0324,69032.0,69030.0,0.07245]
[1729487538992,0.04448381,69031.0,69030.0,0.07245]
[1729487539408,0.04448381,69031.0,69030.0,0.07345]
[1729487539593,0.0444838,69031.0,69030.0,0.07345]
[1729487540409,0.0524838,69031.0,69030.0,0.07345]
[1729487540604,0.0524838,69031.0,69030.0,0.07445]
[1729487540605,0.0614838,69031.0,69030.0,0.07445]
[1729487541993,0.06148198,69031.0,69030.0,0.43525]
[1729487542198,0.017,69031.0,69030.0,0.43525]
[1729487542606,0.06148207,69031.0,69030.0,0.43525]
[1729487542800,0.017,69031.0,69030.0,0.43525]
[1729487543003,0.06148282,69031.0,69030.0,0.43525]
[1729487543809,0.06148213,69031.0,69030.0,0.43525]
[1729487544108,0.017,69031.0,69030.0,0.43525]
[1729487546503,0.06148194,69031.0,69030.0,0.43525]
[1729487546904,0.017,69031.0,69030.0,0.43525]
[1729487550005,0.017,69031.0,69030.0,0.002]
[1729487550407,0.0492,69031.0,69030.0,0.002]
[1729487554117,0.09368529,69031.0,69030.0,0.002]
[1729487556014,0.15828529,69031.0,69030.0,0.002]
[1729487556220,0.23073429,69031.0,69030.0,0.002]
[1729487558915,0.15828529,69031.0,69030.0,0.002]
[1729487559106,0.09368529,69031.0,69030.0,0.002]
[1729487559616,0.20846457,69031.0,69030.0,0.002]
[1729487559913,0.25294986,69031.0,69030.0,0.002]
[1729487560116,0.09368529,69031.0,69030.0,0.002]
[1729487560721,0.25294986,69031.0,69030.0,0.002]
[1729487561514,0.09368529,69031.0,69030.0,0.002]
[1729487562119,0.0492,69031.0,69030.0,0.002]
[1729487563310,0.0492,69031.0,69030.0,0.07445]
[1729487571221,0.09368579,69031.0,69030.0,0.07445]
[1729487571717,0.09368579,69031.0,69030.0,0.002]
[1729487575313,0.09368579,69031.0,69010.0,0.3608]
[1729487575314,0.41,69031.0,69010.0,0.3608]
[1729487575518,0.3608,69024.0,69017.0,0.072463]
[1729487576020,0.3608,69024.0,69019.0,0.072461]
[1729487576217,0.3608,69024.0,69020.0,0.07246]
[1729487576719,0.3628,69024.0,69020.0,0.07246]
[1729487578718,0.3648,69024.0,69020.0,0.07246]
[1729487579924,0.3648,69024.0,69020.0,0.09116444]
[1729487581814,0.3648,69024.0,69015.0,0.072465]
[1729487582027,0.072459,69021.0,69015.0,0.072465]
[1729487582229,0.36556,69024.0,69013.0,0.3608]
[1729487582527,0.072462,69019.0,69013.0,0.3608]
[1729487582729,0.0312,69018.0,69013.0,0.3608]
[1729487583026,0.072464,69017.0,69013.0,0.3608]
[1729487583227,0.072464,69017.0,69015.0,0.001]
[1729487583917,0.072464,69017.0,69013.0,0.38308622]
[1729487584827,0.36368,69024.0,69013.0,0.38308622]
[1729487584828,0.072459,69022.0,69015.0,0.075465]
[1729487585427,0.001,69017.0,69015.0,0.080465]
[1729487585618,0.001,69017.0,69015.0,0.077465]
[1729487585815,0.0444939,69016.0,69015.0,0.077465]
[1729487586121,0.0444939,69016.0,69015.0,0.072465]
[1729487586719,0.0444939,69016.0,69015.0,0.076465]
[1729487587918,0.0444939,69016.0,69015.0,0.079465]
[1729487588227,0.04449311,69016.0,69015.0,0.079465]
[1729487588429,0.04449311,69016.0,69015.0,0.080465]
[1729487588621,0.04449311,69016.0,69015.0,0.077465]
[1729487588930,0.04449311,69016.0,69015.0,0.081465]
[1729487589843,0.072459,69022.0,69015.0,0.081465]
[1729487590018,0.04449389,69021.0,69015.0,0.081465]
[1729487590222,0.04449389,69020.0,69015.0,0.081465]
[1729487590426,0.04449389,69019.0,69015.0,0.081465]
[1729487590720,0.072459,69022.0,69015.0,0.081465]
[1729487590923,0.04449389,69021.0,69015.0,0.077465]
[1729487591125,0.04449389,69020.0,69015.0,0.077465]
[1729487591421,0.073459,69022.0,69015.0,0.077465]
[1729487591617,0.001,69022.0,69019.0,0.433261]
[1729487591828,0.04449165,69021.0,69020.0,0.0326]
[1729487592125,0.04449165,69021.0,69020.0,0.10506]
[1729487592526,0.07462359,69030.0,69020.0,0.10506]
[1729487593029,0.072451,69029.0,69020.0,0.10506]
[1729487593329,0.072451,69029.0,69020.0,0.0326]
[1729487593530,0.072451,69029.0,69022.0,0.072458]
[1729487593723,0.072452,69028.0,69022.0,0.072458]
[1729487593924,0.072452,69028.0,69020.0,0.0326]
[1729487594119,0.072452,69028.0,69023.0,0.072457]
[1729487595430,0.079452,69028.0,69023.0,0.073457]
[1729487595639,0.086452,69028.0,69023.0,0.074457]
[1729487598334,0.072456,69024.0,69023.0,0.002]
[1729487599436,0.072456,69024.0,69023.0,0.001]
[1729487599739,0.075456,69024.0,69023.0,0.001]
[1729487600738,0.072459,69022.0,69020.0,0.05137561]
[1729487601937,0.001,69022.0,69020.0,0.05137561]
[1729487602135,0.002,69022.0,69020.0,0.05137561]
[1729487604833,0.002,69022.0,69020.0,0.12383561]
[1729487607540,0.04448992,69021.0,69020.0,0.12383561]
[1729487608427,0.002,69022.0,69020.0,0.12383561]
[1729487608938,0.001,69022.0,69020.0,0.12383561]
[1729487609831,0.072452,69028.0,69020.0,0.05137561]
[1729487610032,0.04448966,69027.0,69021.0,0.072459]
[1729487610243,0.04448966,69026.0,69021.0,0.072459]
[1729487610438,0.04448966,69025.0,69021.0,0.072459]
[1729487610638,0.002,69022.0,69021.0,0.072459]
[1729487611039,0.04648966,69022.0,69021.0,0.072459]
[1729487611438,0.04648966,69022.0,69021.0,0.074459]
[1729487611439,0.04448966,69022.0,69021.0,0.074459]
[1729487612043,0.04448966,69022.0,69021.0,0.073459]
[1729487612250,0.04548966,69022.0,69021.0,0.073459]
[1729487613338,0.16038594,69022.0,69021.0,0.073459]
[1729487613538,0.04548966,69022.0,69021.0,0.072459]
[1729487613743,0.04648966,69022.0,69021.0,0.072459]
[1729487614547,0.002,69022.0,69021.0,0.072459]
[1729487617155,0.002,69022.0,69021.0,0.507099]
[1729487619754,0.002,69022.0,69021.0,0.626899]
[1729487622958,0.002,69022.0,69021.0,0.192259]
[1729487623562,0.002,69022.0,69021.0,0.072459]
[1729487623749,0.002,69022.0,69021.0,0.185539]
[1729487624456,0.002,69022.0,69021.0,0.072459]
[1729487630361,0.04648796,69022.0,69021.0,0.072459]
[1729487630855,0.04648798,69022.0,69021.0,0.072459]
[1729487634962,0.002,69022.0,69021.0,0.072459]
[1729487636949,0.002,69022.0,69021.0,0.103059]
[1729487640166,0.002,69022.0,69021.0,0.072459]
[1729487643366,0.002,69022.0,69020.0,0.01877561]
[1729487643662,0.0647,69021.0,69018.0,0.3608]
[1729487644771,0.04449216,69020.0,69018.0,0.3608]
[1729487644970,0.04449216,69019.0,69018.0,0.37952111]
[1729487645268,0.07729216,69019.0,69018.0,0.09118311]
[1729487646476,0.07729216,69019.0,69018.0,0.09318311]
[1729487647361,0.07729216,69019.0,69018.0,0.09518311]
[1729487651774,0.0328,69019.0,69018.0,0.09518311]
[1729487655972,0.063,69029.0,69025.0,0.072455]
[1729487655973,0.0304,69028.0,69025.0,0.072455]
[1729487657075,0.0444,69028.0,69025.0,0.074455]
[1729487659987,0.04448784,69027.0,69025.0,0.074455]
[1729487660285,0.04448784,69026.0,69025.0,0.074455]